bitfinex/quotes_ETHUSD_20250114
["timestamp","ask_amount","ask_price","bid_price","bid_amount"]
[1736871654565,0.8272,3190.3,3189.6,3.0]
[1736871654768,0.05229609,3190.2,3189.9,3.13488]
[1736871655067,0.8272,3190.9,3189.8,3.0]
[1736871655405,0.05050643,3190.8,3190.0,3.13473]
[1736871655752,3.18452643,3190.8,3189.8,3.13498]
[1736871656195,0.05050643,3190.8,3189.9,7.41891455]
[1736871656397,0.05050643,3190.8,3190.4,0.7741]
[1736871656756,0.8272,3191.2,3190.4,0.7741]
[1736871656952,0.05083138,3191.1,3190.4,0.7741]
[1736871657555,0.45199652,3191.1,3190.3,0.29260421]
[1736871657885,3.13391,3190.9,3190.3,0.5266889]
[1736871658391,0.05122679,3190.8,3190.3,0.23408469]
[1736871658554,3.18530679,3190.8,3190.3,0.23408469]
[1736871658896,0.05122679,3190.8,3190.3,0.23408469]
[1736871659211,0.8272,3191.2,3190.2,0.29260421]
[1736871659491,0.0510473,3190.7,3190.3,0.29260421]
[1736871659681,0.55,3191.1,3190.3,0.29260421]
[1736871659862,3.134,3190.9,3190.3,0.29260421]
[1736871660062,0.05121126,3191.0,3190.3,0.29260421]
[1736871660286,0.05110196,3190.8,3190.3,0.29260421]
[1736871660509,0.05106386,3190.9,3190.8,3.13401]
[1736871660685,0.7598,3191.6,3190.8,3.99148034]
[1736871660902,0.7598,3191.6,3190.6,3.0]
[1736871661102,3.13342,3191.4,3190.4,8.08308455]
[1736871661304,0.7598,3191.6,3190.9,3.13389]
[1736871661501,0.7598,3191.6,3190.4,8.08308455]
[1736871661502,0.04966103,3191.3,3190.7,3.13405]
[1736871661718,3.89303,3191.6,3190.7,3.13405]
[1736871661891,0.7598,3191.6,3190.5,0.23421752]
[1736871662224,0.7598,3191.6,3190.7,3.13402]
[1736871662225,0.05018521,3191.5,3190.7,3.13402]
[1736871662823,0.05018521,3191.5,3190.6,0.29260421]
[1736871663112,0.05018521,3191.5,3191.1,3.13362]
[1736871663323,0.7598,3191.9,3191.2,3.13353]
[1736871663473,0.05009942,3191.4,3191.3,3.13351]
[1736871663676,0.7598,3192.4,3191.5,3.13332]
[1736871663987,0.7598,3192.4,3191.9,3.13291]
[1736871664188,0.04919172,3192.3,3192.0,3.13274]
[1736871664407,0.63063741,3193.6,3192.2,3.99148034]
[1736871664575,0.7598,3193.3,3192.5,3.99148034]
[1736871664785,0.7598,3193.8,3192.8,3.99148034]
[1736871665081,3.13126,3193.6,3192.7,0.799]
[1736871665294,0.05064719,3193.7,3192.9,3.13194]
[1736871665495,0.04617823,3193.5,3192.8,3.99148034]
[1736871665696,0.04608752,3193.6,3192.8,3.13201]
[1736871665911,0.04601467,3193.4,3192.7,1.0915255]
[1736871666115,3.13148,3193.4,3192.7,0.2925255]
[1736871666315,3.13124,3193.7,3192.7,0.2925255]
[1736871666504,0.04653647,3193.3,3192.7,0.2925255]
[1736871666700,0.7598,3193.8,3192.7,3.4246455]
[1736871667023,4.21959026,3193.8,3192.7,3.4246455]
[1736871667227,0.04679292,3193.7,3192.7,3.4246455]
[1736871667436,0.04679292,3193.7,3192.8,3.99148034]
[1736871668690,3.17797292,3193.7,3192.7,3.13213]
[1736871669426,0.04679292,3193.7,3193.1,0.005]
[1736871669628,3.13128,3193.6,3193.1,0.005]
[1736871669936,3.13136,3193.5,3193.1,0.005]
[1736871670085,3.17778648,3193.5,3193.1,0.005]
[1736871670451,3.13145,3193.4,3193.1,0.005]
[1736871670645,3.13165,3193.2,3193.1,0.005]
[1736871670989,0.04652482,3193.2,3193.1,0.005]
[1736871671189,0.7598,3193.8,3193.1,0.005]
[1736871671388,0.04714861,3193.7,3193.1,0.005]
[1736871671817,0.04714861,3193.7,3193.1,7.12822034]
[1736871672027,0.04714861,3193.7,3193.1,0.005]
[1736871672242,0.7598,3193.9,3193.1,0.005]
[1736871672243,0.03913996,3193.8,3193.1,0.005]
[1736871672452,0.7598,3193.6,3193.1,0.005]
[1736871672590,3.8911,3193.6,3193.1,0.005]
[1736871672791,0.04753764,3193.5,3193.1,0.005]
[1736871673210,3.13156,3193.3,3193.1,0.005]
[1736871673408,3.17890764,3193.5,3193.1,0.005]
[1736871673604,3.13146,3193.4,3193.1,0.005]
[1736871673995,0.04736432,3193.3,3193.1,0.005]
[1736871674429,3.17900432,3193.3,3193.1,0.005]
[1736871675099,3.13165,3193.2,3193.1,0.005]
[1736871675528,0.04813253,3193.2,3193.1,0.005]
[1736871675906,0.03914677,3193.4,3193.1,0.005]
[1736871676117,3.17978253,3193.2,3193.1,0.005]
[1736871676350,3.44962825,3193.2,3193.1,0.005]
[1736871676560,3.49744299,3193.2,3193.1,0.005]
[1736871676848,0.04781474,3193.2,3193.1,0.005]
[1736871677221,0.7598,3193.6,3193.1,0.005]
[1736871677727,0.04811077,3193.5,3193.1,3.13668]
[1736871678051,0.7791,3194.0,3193.2,3.13158]
[1736871678256,0.7791,3194.0,3193.1,0.005]
[1736871678408,0.04832901,3193.9,3193.1,0.005]
[1736871678950,0.04832901,3193.9,3193.2,3.13157]
[1736871679736,0.04832901,3193.9,3193.3,3.13153]
[1736871680928,0.04832901,3193.9,3193.2,3.13157]
[1736871682910,0.04832901,3193.9,3193.3,3.13151]
[1736871683117,0.04832901,3193.9,3193.5,3.13135]
[1736871683320,0.04832901,3193.9,3193.4,0.7961]
[1736871683521,0.7791,3194.6,3193.4,0.7961]
[1736871683722,1.170018,3194.6,3193.7,3.13116]
[1736871683917,0.0470806,3194.5,3193.6,3.13126]
[1736871684283,0.7791,3194.6,3193.6,3.0]
[1736871684432,0.7791,3194.6,3193.5,3.13134]
[1736871684433,3.13052,3194.4,3193.5,3.13134]
[1736871684768,0.7791,3194.6,3193.5,3.0]
[1736871685064,3.13075,3194.2,3193.4,0.7961]
[1736871685376,3.13117,3193.7,3193.1,0.005]
[1736871685519,0.03914464,3193.6,3193.1,0.005]
[1736871685720,0.7791,3193.5,3193.1,0.005]
[1736871685946,3.13165,3193.2,3193.1,0.005]
[1736871686319,0.04702288,3193.4,3193.1,0.005]
[1736871686320,3.17855288,3193.4,3193.1,0.005]
[1736871686517,0.0464361,3193.2,3193.1,0.005]
[1736871686762,0.7791,3193.5,3193.1,0.005]
[1736871687146,0.7791,3193.8,3193.2,3.13163]
[1736871687545,0.7791,3193.8,3193.1,0.005]
[1736871687546,0.0466486,3193.7,3193.1,0.005]
[1736871687742,0.7791,3193.8,3193.1,0.005]
[1736871688265,3.17792675,3193.7,3193.1,0.005]
[1736871688466,0.04666675,3193.7,3193.2,0.7961]
[1736871688666,0.04666675,3193.7,3193.1,0.005]
[1736871688836,3.17002041,3194.0,3193.1,3.005]
[1736871689038,3.13105,3193.9,3193.1,0.005]
[1736871689376,3.1313,3193.6,3193.1,0.005]
[1736871689540,3.522105,3193.8,3193.1,0.005]
[1736871689872,0.391015,3193.8,3193.1,0.005]
[1736871690042,3.17768265,3193.7,3193.1,0.005]
[1736871690446,0.04650265,3193.7,3193.1,0.005]
[1736871690882,0.03914222,3193.7,3193.1,0.005]
[1736871691197,3.13125,3193.7,3193.1,0.005]
[1736871691353,0.04653886,3193.6,3193.1,0.005]
[1736871692352,0.04653886,3193.6,3193.2,0.29232283]
[1736871692765,3.91001,3194.0,3193.2,1.32176171]
[1736871692992,0.0465826,3193.9,3193.2,4.45338171]
[1736871693205,0.0465826,3193.9,3193.3,3.13155]
[1736871693356,0.0465826,3193.9,3193.2,1.32176171]
[1736871693556,3.1775526,3193.9,3193.2,1.32176171]
[1736871693796,0.44224786,3193.9,3193.2,0.52566171]
[1736871693998,0.7791,3193.4,3193.3,0.29232283]
[1736871694198,0.82575474,3193.4,3193.3,0.29232283]
[1736871694405,0.82575474,3193.4,3193.3,0.52566171]
[1736871694608,0.04665474,3193.4,3193.3,0.52566171]
[1736871695100,0.7791,3193.7,3193.3,0.52566171]
[1736871695258,3.52667526,3193.9,3193.3,0.52566171]
[1736871695259,0.04656396,3193.4,3193.3,0.52566171]
[1736871695459,3.13101,3193.9,3193.3,0.52566171]
[1736871695668,0.04656396,3193.4,3193.3,0.52566171]
[1736871695874,3.522021,3193.9,3193.4,0.29232283]
[1736871696865,0.7791,3194.0,3193.4,0.29232283]
[1736871697206,0.7791,3194.0,3193.5,0.52566171]
[1736871697710,0.7791,3194.6,3193.8,3.13097]
[1736871697861,3.90912,3194.9,3193.9,3.92697]
[1736871698268,3.90912,3194.9,3193.9,0.7961]
[1736871698498,0.7791,3194.9,3194.1,3.13075]
[1736871698710,0.7791,3194.9,3193.9,4.78758034]
[1736871698911,3.2973931,3195.1,3193.9,4.78758034]
[1736871699217,3.12998,3194.9,3194.0,3.13081]
[1736871699512,0.7791,3194.7,3194.0,0.23333888]
[1736871699821,0.7791,3194.7,3194.0,0.52566171]
[1736871700310,0.7791,3195.0,3194.1,0.7961]
[1736871700472,3.13006,3194.9,3194.1,1.02943888]
[1736871700815,3.75612054,3194.9,3194.1,1.02943888]
[1736871701113,3.13019,3194.7,3194.1,0.23333888]
[1736871701314,0.7791,3194.7,3194.2,0.29232283]
[1736871701513,3.13057,3194.3,3194.2,0.29232283]
[1736871701678,4.45967,3194.3,3194.2,0.52566171]
[1736871701876,4.45967,3194.3,3194.2,1.71e-06]
[1736871702077,5.66088234,3194.3,3194.2,1.71e-06]
[1736871702683,5.07173677,3194.3,3194.2,1.71e-06]
[1736871703284,3.1314,3193.5,3193.1,0.005]
[1736871704410,0.7791,3193.6,3193.1,0.005]
[1736871704725,3.13156,3193.3,3193.1,0.005]
[1736871706434,0.7791,3193.6,3193.1,0.005]
[1736871706606,3.13143,3193.5,3193.1,0.005]
[1736871706987,0.8331,3193.9,3193.1,0.005]
[1736871707232,0.03914329,3193.8,3193.1,0.005]
[1736871707443,0.8331,3193.9,3193.1,0.005]
[1736871707444,3.13135,3193.6,3193.1,0.005]
[1736871707588,3.444515,3193.5,3193.1,0.005]
[1736871707788,0.313135,3193.5,3193.1,0.005]
[1736871708001,3.13121,3193.7,3193.1,0.005]
[1736871708738,3.96409,3193.9,3193.1,0.005]
[1736871709030,0.8331,3193.9,3193.1,0.005]
[1736871709239,1.229489,3193.9,3193.1,0.005]
[1736871709834,0.04510405,3193.8,3193.1,0.005]
[1736871710591,0.04510405,3193.8,3193.2,0.7992]
[1736871710799,0.8331,3194.2,3193.2,0.7992]
[1736871711024,3.13149,3193.4,3193.1,0.005]
[1736871711228,0.8331,3193.5,3193.1,0.005]
[1736871711229,3.13165,3193.2,3193.1,0.005]
[1736871711435,0.04515933,3193.2,3193.1,0.005]
[1736871711791,3.13129,3193.6,3193.1,0.005]
[1736871711987,0.04534117,3193.5,3193.1,0.005]
[1736871712317,3.13131,3193.6,3193.1,0.005]
[1736871712500,0.04497788,3193.4,3193.1,0.005]
[1736871712704,3.48956977,3193.5,3193.1,0.005]
[1736871712906,0.04495963,3193.3,3193.1,0.005]
[1736871713133,3.13137,3193.5,3193.1,0.005]
[1736871713337,0.04490505,3193.2,3193.1,0.005]
[1736871713496,3.13146,3193.4,3193.1,0.005]
[1736871713697,0.04503219,3193.2,3193.1,0.005]
[1736871713891,3.13129,3193.6,3193.1,0.005]
[1736871714109,0.313129,3193.6,3193.1,0.005]
[1736871714288,3.13163,3193.3,3193.1,0.005]
[1736871714689,0.04465452,3193.2,3193.1,0.005]
[1736871714890,4.04855115,3193.2,3193.1,0.005]
[1736871715214,4.00944012,3193.2,3193.1,0.005]
[1736871715792,4.55944012,3193.2,3193.1,0.005]
[1736871715999,8.01929947,3193.2,3193.1,0.005]
[1736871716907,11.17767981,3193.2,3193.1,1e-05]
[1736871717108,12.01077981,3193.2,3193.1,1e-05]
[1736871719020,8.01929947,3193.2,3193.1,1e-05]
[1736871719392,4.00944012,3193.2,3193.1,1e-05]
[1736871719593,0.87779012,3193.2,3193.1,1e-05]
[1736871719905,0.04469012,3193.2,3193.1,1e-05]
[1736871720292,0.03914696,3193.2,3193.1,1e-05]
[1736871720655,3.68165,3193.2,3193.1,1e-05]
[1736871720841,5.26671637,3193.2,3193.1,1e-05]
[1736871721213,8.26671637,3193.2,3193.1,1e-05]
[1736871721525,12.21904152,3193.2,3193.1,1e-05]
[1736871722410,8.22756118,3193.2,3193.1,1e-05]
[1736871722723,5.44056118,3193.2,3193.1,1e-05]
[1736871722920,3.17443607,3193.2,3193.1,1e-05]
[1736871723125,0.04278607,3193.2,3193.1,1e-05]
[1736871723453,3.94905,3193.8,3193.1,1e-05]
[1736871723624,0.04308943,3193.2,3193.1,1e-05]
[1736871723827,3.13146,3193.4,3193.1,1e-05]
[1736871724025,0.8179,3193.8,3193.1,1e-05]
[1736871724026,0.04314465,3193.3,3193.1,1e-05]
[1736871724226,3.99148034,3194.5,3193.1,1e-05]
[1736871724227,3.13098,3193.9,3193.1,1e-05]
[1736871724439,0.8179,3194.1,3193.1,1e-05]
[1736871724440,0.04374539,3193.8,3193.3,0.8235]
[1736871724647,3.17484539,3193.8,3193.3,0.8235]
[1736871724844,3.13091,3194.0,3193.3,0.8235]
[1736871725045,0.04318608,3193.7,3193.3,3.95499]
[1736871725243,3.13068,3194.2,3193.3,3.95499]
[1736871725548,0.04315008,3193.6,3193.3,0.8235]
[1736871725739,0.8179,3194.4,3193.3,0.8235]
[1736871725907,3.13098,3193.9,3193.3,0.8235]
[1736871726355,0.04328362,3193.8,3193.3,0.8235]
[1736871726557,3.17440362,3193.8,3193.3,0.8235]
[1736871726708,0.04328362,3193.8,3193.3,0.8235]
[1736871726909,3.17437362,3193.8,3193.1,0.82351]
[1736871727110,3.13138,3193.5,3193.1,1e-05]
[1736871727305,0.86109484,3193.7,3193.1,1e-05]
[1736871727541,3.13165,3193.2,3193.1,1e-05]
[1736871727953,0.0434462,3193.2,3193.1,0.82351]
[1736871728383,3.13048,3194.4,3193.1,0.82351]
[1736871728384,0.8179,3194.4,3193.1,0.82351]
[1736871728587,3.13029,3194.6,3193.7,0.8235]
[1736871728968,3.13036,3194.6,3193.7,0.8235]
[1736871729177,4.34213523,3194.8,3193.7,3.95463]
[1736871729353,3.8110423,3194.9,3194.0,3.1308]
[1736871729354,0.8110423,3194.9,3194.0,3.1308]
[1736871729558,3.13001,3194.9,3194.1,0.8235]
[1736871729996,0.1675531,3195.1,3194.1,0.8235]
[1736871730198,3.13004,3194.9,3194.1,0.8235]
[1736871730345,3.2973431,3195.1,3194.2,3.13066]
[1736871730542,3.2973431,3195.1,3194.1,0.8235]
[1736871730858,3.2973431,3195.1,3194.1,3.95424]
[1736871731778,3.2973431,3195.1,3194.2,3.13067]
[1736871731950,0.49728741,3195.1,3194.2,0.29232552]
[1736871732146,3.13,3194.9,3194.2,0.29232552]
[1736871732962,3.13,3194.9,3194.1,1.11582552]
[1736871733163,0.1675531,3195.1,3194.1,1.11582552]
[1736871733164,0.8179,3194.8,3194.1,1.11582552]
[1736871733360,3.13007,3194.9,3194.1,1.11582552]
[1736871733565,0.9854531,3195.1,3194.2,0.8235]
[1736871733566,0.1675531,3195.1,3194.2,0.8235]
[1736871733797,0.1675531,3195.1,3194.3,3.0]
[1736871733948,0.1675531,3195.1,3194.4,0.8235]
[1736871734149,0.03986748,3195.0,3194.4,0.8235]
[1736871734347,0.1675531,3195.1,3194.4,0.8235]
[1736871734575,0.04015309,3194.9,3194.5,3.13029]
[1736871734776,0.1675531,3195.1,3194.7,3.13016]
[1736871734777,0.04017131,3195.0,3194.7,3.13016]
[1736871734978,0.0405483,3194.8,3194.6,3.95374]
[1736871735160,0.1675531,3195.1,3194.8,3.13004]
[1736871735363,0.1675531,3195.1,3194.6,3.8235]
[1736871735911,0.1675531,3195.1,3195.0,0.8145]
[1736871736087,0.1675531,3195.1,3195.0,3.94439]
[1736871736404,0.1675531,3195.1,3195.0,6.94439]
[1736871738907,0.1675531,3195.1,3195.0,3.8145]
[1736871739069,0.1675531,3195.1,3195.0,0.8145]
[1736871739259,0.1675531,3195.1,3195.0,3.94439]
[1736871739601,0.20882976,3195.1,3195.0,0.8145]
[1736871739773,0.1675531,3195.1,3195.0,0.8145]
[1736871740295,0.1675531,3195.1,3194.6,0.8145]
[1736871740498,3.13011,3194.8,3193.9,0.62641503]
[1736871740797,0.313011,3194.7,3193.7,1.10532668]
[1736871741003,3.13075,3194.2,3193.7,1.10532668]
[1736871741209,0.7835,3194.4,3193.7,1.10532668]
[1736871741372,0.04070381,3194.1,3193.7,1.10532668]
[1736871741581,0.313011,3194.7,3193.7,1.10532668]
[1736871741881,3.17101411,3194.6,3193.7,0.8145]
[1736871742084,0.04065411,3194.6,3193.7,0.8145]
[1736871742295,3.13041,3194.5,3193.7,0.8145]
[1736871742599,3.13069,3194.2,3193.7,0.8145]
[1736871742897,0.04059918,3194.1,3193.7,0.8145]
[1736871743407,3.1305,3194.4,3193.7,0.8145]
[1736871743700,0.31305,3194.3,3193.7,0.8145]
[1736871743884,0.35375825,3194.3,3193.7,0.8145]
[1736871744088,0.04070825,3194.3,3193.7,0.8145]
[1736871744608,3.1305,3194.4,3193.7,0.8145]
[1736871744904,0.04049666,3194.3,3193.7,0.8145]
[1736871745258,0.04049666,3194.3,3194.2,3.13067]
[1736871745475,0.1675531,3195.1,3194.7,3.13009]
[1736871745677,0.1675531,3195.1,3194.6,0.8145]
[1736871745888,0.1675531,3195.1,3194.6,3.9447]
[1736871746077,0.03658379,3195.0,3194.6,3.9447]
[1736871746273,0.1675531,3195.1,3194.6,3.9447]
[1736871746801,0.1675531,3195.1,3194.6,0.8145]
[1736871747062,0.03657669,3195.0,3194.7,3.13014]
[1736871747194,0.03657669,3195.0,3194.9,3.12998]
[1736871747403,0.1675531,3195.1,3194.7,3.99148034]
[1736871747718,0.1675531,3195.1,3194.8,3.0]
[1736871748041,0.1675531,3195.1,3195.0,6.94439]
[1736871748931,0.1675531,3195.1,3195.0,10.93587034]
[1736871749134,0.1675531,3195.1,3195.0,6.94439]
[1736871749334,0.1675531,3195.1,3195.0,10.93587034]
[1736871750219,0.1675531,3195.1,3195.0,11.22718418]
[1736871750419,0.1675531,3195.1,3195.0,7.23570384]
[1736871750744,0.1675531,3195.1,3195.0,11.22718418]
[1736871752305,0.1675531,3195.1,3195.0,11.77718418]
[1736871752653,3.1e-06,3195.1,3195.0,11.77718418]
[1736871752836,0.7835,3196.8,3195.8,0.8145]
[1736871753157,0.03701691,3196.7,3195.8,6.94356]
[1736871753372,0.03701691,3196.7,3196.0,3.12882]
[1736871753859,0.7835,3196.8,3196.0,3.12882]
[1736871754063,0.03709638,3196.7,3196.0,3.1289]
[1736871754862,0.03709638,3196.7,3196.4,0.8145]
[1736871755036,0.03709638,3196.7,3196.6,10.11980034]
[1736871755236,0.6212122,3197.5,3196.7,3.0]
[1736871755451,0.6212122,3197.5,3196.7,3.12819]
[1736871755617,0.0366162,3197.4,3196.5,3.1284]
[1736871755822,3.44396762,3197.4,3196.4,0.8145]
[1736871756020,0.03659162,3197.3,3196.6,3.99148034]
[1736871756253,0.7835,3197.9,3196.7,3.0]
[1736871756463,3.12724,3197.7,3196.7,6.12819]
[1736871756976,0.03672262,3197.6,3196.4,0.8145]
[1736871757166,3.91099,3197.5,3196.1,0.8145]
[1736871757323,0.39477126,3197.4,3196.1,4.80598034]
[1736871757648,0.43149616,3197.4,3196.1,4.80598034]
[1736871758164,0.43149616,3197.4,3196.4,3.12843]
[1736871758384,0.43149616,3197.4,3196.2,3.29099344]
[1736871758744,0.0367249,3197.4,3196.2,3.29099344]
[1736871758972,0.0367249,3197.4,3196.6,3.12826]
[1736871759281,3.1268,3198.2,3196.3,3.12859]
[1736871759282,0.0365231,3197.3,3196.7,0.8145]
[1736871759454,0.0365231,3197.3,3196.8,3.0]
[1736871759659,0.7835,3197.8,3196.8,3.0]
[1736871759660,0.7835,3197.8,3197.2,3.12773]
[1736871759971,0.03762149,3197.7,3197.2,3.12773]
[1736871760285,0.03762149,3197.7,3196.8,3.0]
[1736871760491,0.03762149,3197.7,3197.4,3.12752]
[1736871760643,0.03762149,3197.7,3197.1,3.0]
[1736871760994,0.7835,3198.2,3197.0,3.99148034]
[1736871760995,0.7835,3198.2,3197.4,3.0]
[1736871761392,0.03875156,3198.1,3197.4,3.0]
[1736871761544,0.03875156,3198.1,3197.6,3.12726]
[1736871761749,0.03875156,3198.1,3197.7,3.12723]
[1736871762055,0.1675531,3198.3,3197.4,3.0]
[1736871762476,0.1675531,3198.3,3197.9,3.12704]
[1736871762676,0.1675531,3198.3,3198.0,3.12693]
[1736871762677,0.03889152,3198.2,3198.0,3.12693]
[1736871762994,0.03512451,3198.2,3198.1,6.12685]
[1736871763142,0.1675531,3198.3,3198.2,3.12675]
[1736871763965,0.1675531,3198.3,3198.2,6.12675]
[1736871767697,3.1e-06,3198.3,3198.2,11.48443034]
[1736871768682,3.1e-06,3198.3,3198.2,11.73443034]
[1736871769135,3.1e-06,3198.3,3198.2,11.98443034]
[1736871769300,0.7728,3200.0,3199.4,3.12558]
[1736871769696,0.03877146,3199.9,3199.4,3.12558]
[1736871769899,0.03877146,3199.9,3199.2,6.12574]
[1736871770139,0.7728,3200.0,3199.3,3.12565]
[1736871770485,0.03889806,3199.9,3199.3,3.12565]
[1736871771092,0.7728,3200.0,3199.3,3.12565]
[1736871772337,0.03884239,3199.9,3199.7,3.12527]
[1736871772540,0.03884239,3199.9,3199.8,3.0]
[1736871772830,0.03884239,3199.9,3199.8,6.12519]
[1736871773035,0.7728,3200.7,3199.8,3.0]
[1736871773208,0.1675531,3201.5,3200.2,3.8162]
[1736871773407,0.1675531,3201.5,3200.5,10.11599034]
[1736871773408,0.03971383,3200.6,3200.5,10.11599034]
[1736871773589,0.7728,3201.2,3200.5,3.99148034]
[1736871773790,0.9403531,3201.5,3201.0,3.124]
[1736871774089,0.03760937,3201.1,3200.8,3.12418]
[1736871774286,0.9403531,3201.5,3201.0,3.12402]
[1736871774490,0.9403531,3201.5,3200.7,3.0]
[1736871774790,0.03673305,3201.4,3201.0,3.12402]
[1736871775424,0.03673305,3201.4,3200.5,3.99148034]
[1736871775712,0.9403531,3201.5,3200.7,3.12425]
[1736871776192,0.03680614,3201.4,3201.0,3.12397]
[1736871776405,0.03680614,3201.4,3200.6,0.8162]
[1736871776628,0.03680614,3201.4,3200.6,6.12437]
[1736871776944,0.03687837,3201.3,3200.3,0.213]
[1736871777239,0.44695952,3201.3,3200.6,3.12436]
[1736871777417,0.9403531,3201.5,3200.6,3.12436]
[1736871777590,0.9403531,3201.5,3200.3,3.64078368]
[1736871777791,0.9403531,3201.5,3200.6,3.12433]
[1736871777991,0.9403531,3201.5,3200.4,3.12458]
[1736871778201,3.16051614,3201.4,3200.4,3.12458]
[1736871778535,0.41008692,3201.3,3200.3,3.64078368]
[1736871778843,0.7898,3201.1,3200.1,3.12486]
[1736871778991,0.7898,3200.8,3199.8,4.065533]
[1736871779194,3.12432,3200.7,3199.8,0.940353]
[1736871779394,3.91432,3200.5,3199.5,0.61474421]
[1736871779613,3.91432,3200.5,3199.8,3.12515]
[1736871779614,0.7898,3200.5,3199.8,3.12515]
[1736871779935,0.03734525,3200.4,3199.5,1.86648921]
[1736871780102,0.03734525,3200.4,3199.5,3.12545]
[1736871780291,0.7898,3200.5,3199.4,0.7898]
[1736871780630,0.03742646,3200.3,3199.6,3.12538]
[1736871780832,0.03748079,3200.4,3199.6,3.99148034]
[1736871781030,0.7898,3200.5,3199.6,3.99148034]
[1736871781031,0.03737214,3200.2,3199.6,3.99148034]
[1736871781336,0.7898,3200.5,3199.6,3.99148034]
[1736871781636,0.7898,3200.5,3199.8,3.12518]
[1736871781933,0.03711759,3200.4,3199.8,3.12518]
[1736871782133,0.03711759,3200.4,3199.6,3.99148034]
[1736871782498,0.03711759,3200.4,3199.7,3.12527]
[1736871782702,0.03711759,3200.4,3199.6,3.99148034]
[1736871782909,0.03711759,3200.4,3200.1,3.12489]
[1736871783108,0.03711759,3200.4,3199.6,3.99148034]
[1736871783344,0.7898,3200.5,3199.7,3.0]
[1736871783539,0.391429,3200.4,3199.6,3.12537]
[1736871783712,0.42760111,3200.4,3199.6,3.12537]
[1736871783913,0.42760111,3200.4,3199.6,3.99148034]
[1736871784235,0.42760111,3200.4,3199.4,6.91533]
[1736871784443,0.42760111,3200.4,3199.6,3.99148034]
[1736871784444,3.55221111,3200.4,3199.6,3.99148034]
[1736871784735,0.43420111,3200.3,3199.6,6.99148034]
[1736871785035,0.8279,3200.2,3199.6,3.0]
[1736871785329,0.03596068,3200.1,3199.6,3.0]
[1736871785842,0.8279,3200.2,3199.6,3.0]
[1736871786038,0.8279,3200.2,3199.7,3.12526]
[1736871786251,0.8279,3200.2,3199.8,3.12519]
[1736871786545,0.8279,3200.2,3199.6,6.99148034]
[1736871786546,0.03596068,3200.1,3200.0,6.125]
[1736871786697,4.83e-06,3200.1,3200.0,10.94588034]
[1736871786913,0.8279,3201.4,3201.1,3.12391]
[1736871787337,0.03251015,3201.3,3201.0,3.0]
[1736871787535,0.8279,3201.4,3201.0,3.0]
[1736871787741,0.8279,3201.4,3200.3,4.82088034]
[1736871787910,0.8279,3201.4,3200.0,4.82088034]
[1736871788112,0.8279,3201.0,3200.2,3.12478]
[1736871788344,0.8279,3201.0,3200.2,3.0]
[1736871788529,3.95204,3200.9,3200.0,3.0]
[1736871788731,0.395204,3200.8,3200.0,3.12497]
[1736871789054,3.12424,3200.8,3199.8,6.12514]
[1736871789253,0.86047848,3200.7,3200.1,0.29014182]
[1736871789557,0.03905733,3200.6,3200.1,0.29014182]
[1736871789757,0.8279,3200.6,3200.1,0.29014182]
[1736871789960,0.86074026,3200.5,3200.1,0.29014182]
[1736871790132,0.8279,3200.2,3199.7,0.29014182]
[1736871790341,4.347969,3200.2,3199.7,0.29014182]
[1736871790532,0.03240969,3200.1,3199.7,0.29014182]
[1736871791432,0.03240969,3200.1,3200.0,3.125]
[1736871791773,0.8279,3200.9,3200.1,3.12489]
[1736871791927,0.8279,3200.9,3200.1,3.12481]
[1736871792127,0.03162442,3200.8,3200.2,3.12473]
[1736871792329,0.03162442,3200.8,3200.3,3.12467]
[1736871792556,0.03162442,3200.8,3200.3,3.41481182]
[1736871792960,0.8279,3200.7,3200.3,0.29014182]
[1736871793361,3.0,3201.2,3200.3,0.29014182]
[1736871793362,0.89830338,3200.6,3200.3,0.29014182]
[1736871793563,0.85924533,3200.6,3200.3,0.29014182]
[1736871793878,0.8279,3200.4,3199.6,3.1253]
[1736871794172,0.8279,3200.4,3199.2,7.11723034]
[1736871794173,0.8279,3200.2,3199.2,3.99148034]
[1736871794334,0.8279,3200.2,3199.0,0.215]
[1736871794534,0.8279,3200.2,3199.2,3.0]
[1736871794535,0.0308995,3200.1,3199.2,3.0]
[1736871794748,0.0308995,3200.1,3199.5,3.12542]
[1736871794930,0.8279,3200.2,3199.5,3.0]
[1736871795128,0.8279,3200.5,3200.1,3.12482]
[1736871795755,0.8279,3200.5,3199.8,3.12513]
[1736871795966,0.8279,3200.5,3200.2,0.29143489]
[1736871796670,0.395231,3200.4,3200.2,0.29143489]
[1736871797053,0.8201,3200.3,3199.4,3.12555]
[1736871797253,0.8201,3200.3,3199.5,3.12548]
[1736871797438,0.8201,3200.3,3199.6,3.12532]
[1736871798172,0.8201,3200.2,3199.2,6.12569]
[1736871798341,3.519385,3200.1,3199.2,6.12569]
[1736871798690,0.8201,3200.0,3199.7,0.29201099]
[1736871798841,3.94529,3199.8,3199.7,0.29201099]
[1736871799046,4.49529,3199.8,3199.7,0.29201099]
[1736871799557,3.94545,3199.7,3198.7,3.12625]
[1736871799753,0.8201,3199.7,3198.8,3.12611]
[1736871799958,0.02829272,3199.6,3198.8,3.12611]
[1736871800272,0.02829272,3199.6,3198.9,3.12597]
[1736871800475,0.8201,3199.7,3198.9,3.12597]
[1736871800781,0.02833799,3199.6,3199.0,0.29192103]
[1736871801146,0.8201,3199.5,3199.0,0.29192103]
[1736871801354,3.97385507,3199.5,3199.0,0.29192103]
[1736871801665,0.39738551,3199.4,3199.0,0.29192103]
[1736871801875,0.02828346,3199.3,3199.1,0.29192103]
[1736871802271,0.8201,3199.2,3199.1,0.29192103]
[1736871802440,0.84823862,3199.2,3199.1,0.29192103]
[1736871802865,0.84823862,3199.2,3198.6,3.0]
[1736871803068,0.84823862,3199.2,3198.7,3.12617]
[1736871803868,0.84823862,3199.2,3198.8,0.29169182]
[1736871805158,0.84823862,3199.2,3198.9,0.29169182]
[1736871805598,0.8201,3199.2,3198.9,0.29169182]